bitfinex/quotes_SOLUSD_20250406
["timestamp","ask_amount","ask_price","bid_price","bid_amount"]
[1743962018371,0.28432314,111.62,111.59,31.56112233]
[1743962018584,0.063,111.63,111.6,31.56112233]
[1743962018790,0.063,111.63,111.61,31.56112233]
[1743962019078,0.20516157,111.63,111.58,31.56112233]
[1743962019275,0.14216157,111.58,111.54,0.03]
[1743962019466,0.28432314,111.56,111.54,0.03]
[1743962019976,31.98760704,111.56,111.54,0.03]
[1743962021979,45.22760704,111.56,111.54,0.03]
[1743962022185,13.66648471,111.56,111.54,0.03]
[1743962022372,13.24,111.56,111.54,0.03]
[1743962022683,0.28432314,111.57,111.54,31.59112233]
[1743962023162,13.24,111.58,111.55,31.56112233]
[1743962023977,0.42648471,111.59,111.55,31.56112233]
[1743962024558,0.42648471,111.59,111.56,31.56112233]
[1743962024559,0.28432314,111.59,111.56,31.56112233]
[1743962024879,13.24,111.6,111.54,6.3057]
[1743962025086,0.14216157,111.59,111.55,31.56112233]
[1743962025295,31.84544547,111.59,111.55,31.56112233]
[1743962025573,0.28432314,111.56,111.54,0.03]
[1743962025980,31.84544547,111.56,111.54,0.03]
[1743962027472,0.28432314,111.56,111.54,0.03]
[1743962027870,31.98760704,111.55,111.54,0.03]
[1743962028391,62.8334559,111.55,111.54,0.03]
[1743962028570,0.28432314,111.54,111.49,0.03]
[1743962028774,31.56112233,111.51,111.49,0.03]
[1743962028982,31.84544547,111.52,111.49,0.03]
[1743962029182,0.28432314,111.52,111.49,0.03]
[1743962029413,0.28432314,111.52,111.49,31.59112233]
[1743962029570,13.24,111.53,111.51,31.56112233]
[1743962029766,0.14216157,111.56,111.52,31.56112233]
[1743962030009,13.24,111.57,111.54,31.56112233]
[1743962030169,13.24,111.57,111.49,18.67964886]
[1743962030488,44.80112233,111.57,111.52,26.0]
[1743962030672,0.28432314,111.56,111.53,31.56112233]
[1743962031375,13.24,111.57,111.53,31.56112233]
[1743962031580,0.14216157,111.58,111.55,31.56112233]
[1743962031780,31.98760704,111.58,111.53,31.56112233]
[1743962032272,31.98760704,111.58,111.54,31.56112233]
[1743962033276,0.42648471,111.58,111.54,31.56112233]
[1743962033485,0.063,111.63,111.57,31.56112233]
[1743962033691,31.7662839,111.63,111.58,31.56112233]
[1743962033891,31.56112233,111.62,111.57,31.56112233]
[1743962034185,31.98760704,111.59,111.55,31.56112233]
[1743962034384,0.42648471,111.59,111.55,31.56112233]
[1743962034571,0.28432314,111.57,111.54,26.0]
[1743962034777,31.84544547,111.57,111.53,57.56112233]
[1743962035084,0.14216157,111.56,111.52,31.56112233]
[1743962035484,0.14216157,111.56,111.52,26.0]
[1743962035688,0.14216157,111.56,111.52,57.56112233]
[1743962035884,0.28432314,111.55,111.52,26.0]
[1743962036382,0.28432314,111.55,111.54,0.03]
[1743962036586,13.22,111.58,111.54,0.03]
[1743962036776,31.84544547,111.57,111.54,0.03]
[1743962037103,0.14216157,111.56,111.54,0.03]
[1743962037480,0.14216157,111.55,111.54,0.03]
[1743962039603,0.14216157,111.56,111.54,0.03]
[1743962039981,31.84544547,111.55,111.54,0.03]
[1743962040185,31.98760704,111.55,111.54,0.03]
[1743962040793,45.20760704,111.55,111.54,0.03]
[1743962041311,13.36216157,111.55,111.54,0.03]
[1743962041679,13.50432314,111.55,111.54,0.03]
[1743962041872,13.22,111.55,111.54,0.03]
[1743962042086,13.50432314,111.55,111.54,0.03]
[1743962042406,63.8572559,111.55,111.54,0.03]
[1743962042982,45.20760704,111.55,111.54,0.03]
[1743962043298,13.64648471,111.55,111.54,0.03]
[1743962043508,0.42648471,111.55,111.54,0.03]
[1743962043911,50.6372559,111.55,111.54,0.03]
[1743962044205,0.42648471,111.55,111.54,0.03]
[1743962044444,0.28432314,111.55,111.54,0.03]
[1743962044588,50.6372559,111.55,111.54,0.03]
[1743962045489,0.14216157,111.53,111.49,0.03]
[1743962045677,0.14216157,111.5,111.49,0.03]
[1743962046099,13.36216157,111.5,111.49,0.03]
[1743962046791,13.50432314,111.5,111.49,0.03]
[1743962047185,13.22,111.5,111.49,0.03]
[1743962047398,31.56112233,111.56,111.49,31.59112233]
[1743962047704,13.0442,111.57,111.53,31.56112233]
[1743962047876,0.42648471,111.56,111.53,31.56112233]
[1743962048079,0.42648471,111.56,111.52,31.56112233]
[1743962048304,26.2442,111.57,111.53,31.56112233]
[1743962048686,31.7662839,111.58,111.53,31.56112233]
[1743962048998,0.063,111.58,111.55,31.56112233]
[1743962049194,0.063,111.58,111.54,31.56112233]
[1743962049402,0.063,111.58,111.56,31.56112233]
[1743962049784,0.063,111.58,111.55,31.56112233]
[1743962049986,0.48948471,111.58,111.54,31.56112233]
[1743962050404,0.34732314,111.58,111.55,31.56112233]
[1743962050699,0.34732314,111.58,111.57,31.56112233]
[1743962050700,0.063,111.58,111.57,31.56112233]
[1743962051592,0.063,111.58,111.57,37.83512233]
[1743962051804,0.063,111.58,111.54,38.76902233]
[1743962052102,0.063,111.58,111.53,50.95554886]
[1743962052280,0.063,111.58,111.55,31.56112233]
[1743962052481,0.34732314,111.58,111.55,31.56112233]
[1743962052681,0.063,111.58,111.56,31.56112233]
[1743962052885,0.063,111.58,111.53,26.03]
[1743962053103,0.063,111.58,111.57,31.56112233]
[1743962053409,0.063,111.58,111.56,31.56112233]
[1743962053591,0.063,111.58,111.54,31.56112233]
[1743962053789,0.14216157,111.57,111.53,26.03]
[1743962053983,13.48432314,111.57,111.53,31.59112233]
[1743962054187,45.04544547,111.57,111.53,0.03]
[1743962054397,13.48432314,111.57,111.54,31.56112233]
[1743962054793,0.28432314,111.57,111.54,31.56112233]
[1743962055403,13.263,111.58,111.55,31.56112233]
[1743962055601,13.263,111.58,111.57,31.56112233]
[1743962055988,13.40516157,111.58,111.55,31.56112233]
[1743962056312,13.263,111.58,111.56,31.56112233]
[1743962056483,0.063,111.58,111.57,31.56112233]
[1743962056888,0.063,111.58,111.57,26.0]
[1743962057099,0.063,111.58,111.56,31.56112233]
[1743962057690,0.063,111.58,111.57,31.56112233]
[1743962057892,0.063,111.58,111.54,31.56112233]
[1743962058088,0.063,111.58,111.57,31.56112233]
[1743962058618,0.063,111.58,111.56,57.56112233]
[1743962058823,0.063,111.58,111.56,26.0]
[1743962059114,0.063,111.58,111.55,57.56112233]
[1743962059439,0.063,111.58,111.57,31.56112233]
[1743962059622,0.063,111.58,111.55,26.0]
[1743962059804,0.063,111.58,111.56,31.56112233]
[1743962060614,0.063,111.58,111.54,26.0]
[1743962060792,0.063,111.58,111.55,57.56112233]
[1743962061194,0.063,111.58,111.55,31.56112233]
[1743962061514,31.90844547,111.58,111.53,31.59112233]
[1743962061718,0.28432314,111.56,111.53,0.03]
[1743962061931,13.46432314,111.56,111.53,0.03]
[1743962062292,13.46432314,111.56,111.54,31.56112233]
[1743962062506,13.18,111.56,111.53,0.03]
[1743962062694,31.98760704,111.55,111.53,0.03]
[1743962062893,0.42648471,111.55,111.53,0.03]
[1743962063305,31.84544547,111.54,111.53,0.03]
[1743962063723,0.28432314,111.54,111.53,0.03]
[1743962063924,13.18,111.56,111.53,31.59112233]
[1743962064104,13.18,111.56,111.54,31.56112233]
[1743962064308,13.46432314,111.57,111.53,31.59112233]
[1743962064515,0.14216157,111.56,111.53,31.59112233]
[1743962065937,13.18,111.57,111.54,31.56112233]
[1743962066135,13.18,111.57,111.55,31.56112233]
[1743962066343,0.28432314,111.56,111.53,0.03]
[1743962066641,0.28432314,111.56,111.54,31.56112233]
[1743962066837,13.18,111.57,111.55,31.56112233]
[1743962067429,13.18,111.57,111.53,31.59112233]
[1743962067616,0.28432314,111.56,111.53,0.03]
[1743962067816,0.28432314,111.56,111.53,31.59112233]
[1743962068025,31.56112233,111.55,111.53,0.03]
[1743962068223,0.14216157,111.54,111.53,0.03]
[1743962068540,31.7032839,111.54,111.53,0.03]
[1743962068847,0.14216157,111.54,111.53,0.03]
[1743962069840,31.56112233,111.54,111.53,0.03]
[1743962070053,31.56112233,111.54,111.49,0.03]
[1743962070054,19.07613357,111.53,111.49,0.03]
[1743962070213,31.98760704,111.5,111.49,0.03]
[1743962070414,63.7972559,111.5,111.49,0.03]
[1743962070720,19.57613357,111.49,111.45,0.03]
[1743962070923,51.1372559,111.46,111.42,0.03]
[1743962071237,19.07613357,111.42,111.41,0.03]
[1743962071458,0.42648471,111.38,111.37,13.73896308]
[1743962071743,50.6372559,111.38,111.37,13.73896308]
[1743962071949,19.07613357,111.38,111.37,13.73896308]
[1743962072348,31.98760704,111.38,111.37,13.73896308]
[1743962072555,63.7972559,111.38,111.37,13.73896308]
[1743962072716,63.7972559,111.38,111.37,6.14716308]
[1743962072924,0.42648471,111.37,111.32,31.56112233]
[1743962073127,0.14216157,111.35,111.32,31.56112233]
[1743962073424,0.42648471,111.34,111.27,6.291]
[1743962073633,0.42648471,111.34,111.3,73.5769593]
[1743962073838,0.42648471,111.32,111.28,47.5769593]
[1743962074030,0.42648471,111.32,111.26,385.90632548]
[1743962074227,47.86128244,111.32,111.25,33.62508925]
[1743962074429,0.28432314,111.32,111.25,39.91718925]
[1743962074734,0.28432314,111.32,111.26,18.64964886]
[1743962075155,0.28432314,111.32,111.29,47.5769593]
[1743962075336,0.28432314,111.33,111.29,26.0]
[1743962075545,0.28432314,111.31,111.25,33.62508925]
[1743962075719,0.42648471,111.33,111.29,47.5769593]
[1743962075921,60.7369593,111.34,111.32,47.5769593]
[1743962075922,26.33919851,111.34,111.32,47.5769593]
[1743962076346,26.33919851,111.34,111.33,47.5769593]
[1743962076347,13.17919851,111.34,111.33,47.5769593]
[1743962076655,13.17919851,111.34,111.33,26.0]
[1743962076814,13.17919851,111.33,111.28,18.64964886]
[1743962077018,13.17919851,111.33,111.31,16.38306899]
[1743962077315,0.42648471,111.35,111.32,47.5769593]
[1743962077525,13.17919851,111.36,111.3,73.5769593]
[1743962077720,13.17919851,111.36,111.35,47.5769593]
[1743962077925,13.17919851,111.37,111.35,95.1539186]
[1743962078124,13.17919851,111.37,111.36,95.1539186]
[1743962078334,13.17919851,111.37,111.36,47.5769593]
[1743962078538,13.17919851,111.37,111.36,95.1539186]
[1743962078849,167.34738589,111.43,111.36,113.80356746]
[1743962079036,0.28432314,111.42,111.36,66.22660816]
[1743962079236,167.34738589,111.43,111.41,47.5769593]
[1743962079425,167.48954746,111.43,111.42,47.5769593]
[1743962079748,167.34738589,111.43,111.42,47.5769593]
[1743962079959,26.35839702,111.45,111.44,26.0]
[1743962080258,22.77399703,111.45,111.44,47.5769593]
[1743962080421,0.42648471,111.44,111.42,47.5769593]
[1743962080620,0.28432314,111.44,111.42,47.5769593]
[1743962080823,0.28432314,111.44,111.36,47.5769593]
[1743962081023,0.14216157,111.44,111.37,18.64964886]
[1743962081233,0.14216157,111.44,111.43,47.5769593]
[1743962081459,0.14216157,111.47,111.43,47.5769593]
[1743962081760,0.14216157,111.47,111.36,101.5069593]
[1743962081924,0.42648471,111.47,111.45,47.5769593]
[1743962082124,0.42648471,111.47,111.42,47.5769593]
[1743962082125,0.14216157,111.47,111.46,47.5769593]
[1743962082325,13.16,111.48,111.43,18.64964886]
[1743962082638,0.063,111.49,111.47,95.1539186]
[1743962082833,0.063,111.49,111.48,95.1539186]
[1743962083020,0.063,111.49,111.48,113.80356746]
[1743962083226,13.16,111.56,111.49,18.64964886]
[1743962083422,13.16,111.56,111.55,47.5769593]
[1743962083955,0.063,111.58,111.49,18.64964886]
[1743962084158,0.063,111.58,111.54,47.5769593]
[1743962084360,0.063,111.58,111.56,47.5769593]
[1743962084658,0.063,111.58,111.55,47.5769593]
[1743962084830,0.063,111.58,111.49,18.64964886]
[1743962084831,0.063,111.58,111.56,47.5769593]
[1743962085649,0.063,111.58,111.57,47.5769593]
[1743962086555,0.063,111.58,111.52,26.0]
[1743962086725,0.063,111.58,111.55,47.5769593]
[1743962087163,0.063,111.58,111.48,47.5769593]
[1743962087331,0.42648471,111.57,111.53,47.5769593]
[1743962087527,0.42648471,111.57,111.55,47.5769593]
[1743962087750,0.063,111.58,111.56,47.5769593]
[1743962087960,0.063,111.58,111.52,26.0]
[1743962088124,0.20516157,111.58,111.55,47.5769593]
[1743962088327,0.28432314,111.57,111.53,47.5769593]
[1743962088538,0.28432314,111.56,111.53,47.5769593]
[1743962088933,0.28432314,111.56,111.48,47.5769593]
[1743962088934,0.28432314,111.56,111.54,47.5769593]
[1743962089853,0.28432314,111.56,111.55,47.5769593]
[1743962090522,0.20516157,111.58,111.55,47.5769593]
[1743962090523,0.48948471,111.58,111.55,47.5769593]
[1743962090728,0.28432314,111.55,111.52,47.5769593]
[1743962090928,0.28432314,111.55,111.54,47.5769593]
[1743962091324,0.42648471,111.55,111.51,47.5769593]
[1743962091557,0.42648471,111.55,111.49,0.03]
[1743962091558,0.14216157,111.55,111.54,47.5769593]
[1743962091861,0.063,111.58,111.54,47.5769593]
[1743962092036,0.063,111.58,111.57,47.5769593]
[1743962092636,0.063,111.58,111.56,47.5769593]
[1743962093047,0.063,111.58,111.49,18.67964886]
[1743962093262,0.14216157,111.57,111.52,26.0]
[1743962093465,0.28432314,111.57,111.56,47.5769593]
[1743962093647,0.063,111.58,111.56,47.5769593]
[1743962094483,0.063,111.58,111.55,47.5769593]
[1743962094670,0.063,111.58,111.56,47.5769593]
[1743962094848,0.063,111.58,111.57,47.5769593]
[1743962095265,0.063,111.58,111.52,32.2768]
[1743962095266,0.063,111.58,111.56,47.5769593]
[1743962095466,0.063,111.58,111.55,47.5769593]
[1743962095672,0.063,111.58,111.52,26.0]
[1743962095864,0.063,111.58,111.56,47.5769593]
[1743962096062,0.063,111.58,111.57,47.5769593]
[1743962096684,0.063,111.58,111.57,66.22660816]
[1743962097375,0.063,111.58,111.57,47.5769593]
[1743962098261,0.063,111.58,111.52,7.509]
[1743962098451,0.063,111.58,111.56,47.5769593]
[1743962098452,13.183,111.58,111.56,47.5769593]
[1743962098652,13.183,111.58,111.57,47.5769593]
[1743962099379,0.063,111.58,111.57,47.5769593]
[1743962100970,0.063,111.58,111.54,47.5769593]
[1743962101160,0.063,111.58,111.52,7.509]
[1743962101373,0.063,111.58,111.56,47.5769593]
[1743962102494,0.063,111.58,111.49,18.67964886]
[1743962102495,0.14216157,111.56,111.49,18.67964886]
[1743962102660,0.42648471,111.56,111.51,47.5769593]
[1743962102859,0.42648471,111.56,111.49,0.03]
[1743962103089,0.42648471,111.56,111.52,47.5769593]
[1743962103387,0.42648471,111.56,111.53,47.5769593]
[1743962103586,13.12,111.57,111.55,47.5769593]
[1743962103790,13.26216157,111.57,111.52,26.0]
[1743962103992,13.26216157,111.57,111.56,47.5769593]
[1743962104192,0.28432314,111.56,111.55,47.5769593]
[1743962104398,0.28432314,111.56,111.5,18.64964886]
[1743962104568,13.12,111.57,111.55,47.5769593]
[1743962104770,0.28432314,111.56,111.55,47.5769593]
[1743962105372,13.12,111.57,111.55,47.5769593]
[1743962105694,13.12,111.57,111.56,47.5769593]
[1743962106072,0.063,111.58,111.56,47.5769593]
[1743962106272,0.063,111.58,111.57,47.5769593]
[1743962106475,0.063,111.58,111.57,66.22660816]
[1743962106687,0.063,111.58,111.57,72.50060816]
[1743962107882,0.063,111.61,111.58,18.64964886]
[1743962108094,0.063,111.63,111.61,18.64964886]
[1743962108307,0.063,111.65,111.63,18.64964886]
[1743962108484,0.063,111.65,111.64,66.22660816]
[1743962108897,0.063,111.65,111.6,73.5769593]
[1743962109112,0.063,111.65,111.57,335.54]
[1743962109277,0.14216157,111.64,111.6,47.5769593]
[1743962109478,0.14216157,111.64,111.57,335.54]
[1743962109808,12.85669157,111.65,111.61,47.5769593]
[1743962109978,12.85669157,111.65,111.63,47.5769593]
[1743962110176,60.43365087,111.65,111.61,47.5769593]
[1743962110500,47.86128244,111.64,111.59,47.5769593]
[1743962110807,47.86128244,111.64,111.57,335.54]
[1743962110994,47.86128244,111.64,111.59,47.5769593]
[1743962111305,47.86128244,111.64,111.57,335.54]
[1743962111599,47.5769593,111.63,111.58,47.5769593]
[1743962111800,48.00344401,111.61,111.52,6.9679]
[1743962112034,47.5769593,111.6,111.55,47.5769593]
[1743962112204,13.52648471,111.59,111.55,47.5769593]
[1743962112409,13.52648471,111.59,111.5,335.44]
[1743962112617,0.42648471,111.58,111.54,47.5769593]
[1743962113119,0.42648471,111.58,111.5,341.7179]
[1743962113413,13.52648471,111.58,111.54,47.5769593]
[1743962113577,13.52648471,111.58,111.5,341.7179]
[1743962113900,13.38432314,111.58,111.51,18.64964886]
[1743962114083,13.38432314,111.58,111.55,47.5769593]
[1743962114279,47.86128244,111.56,111.49,0.03]
[1743962114475,0.14216157,111.55,111.49,0.03]
[1743962114700,0.14216157,111.55,111.51,47.5769593]
[1743962114878,0.42648471,111.55,111.51,47.5769593]
[1743962115187,0.28432314,111.55,111.49,0.03]
[1743962115388,0.28432314,111.55,111.51,47.5769593]
[1743962115589,48.00344401,111.55,111.51,47.5769593]
[1743962115799,0.28432314,111.55,111.52,47.5769593]
[1743962115996,0.28432314,111.55,111.54,47.5769593]
[1743962116403,0.28432314,111.55,111.49,0.03]
[1743962116582,0.14216157,111.54,111.49,0.03]
[1743962117025,47.86128244,111.56,111.52,47.5769593]
[1743962117306,0.14216157,111.52,111.49,0.03]
[1743962117507,48.00344401,111.5,111.49,0.03]
[1743962117804,79.93209287,111.5,111.44,47.5769593]
[1743962118021,0.42648471,111.47,111.43,47.5769593]
[1743962118313,0.14216157,111.46,111.44,47.5769593]
[1743962118495,0.42648471,111.47,111.43,47.5769593]
[1743962118699,48.00344401,111.47,111.43,47.5769593]
[1743962119004,0.42648471,111.45,111.41,47.5769593]
[1743962119214,19.07613357,111.43,111.37,0.03]
[1743962119545,0.42648471,111.43,111.39,47.5769593]
[1743962119716,13.08,111.44,111.42,47.5769593]
[1743962119878,13.08,111.48,111.43,47.5769593]
[1743962120080,13.08,111.48,111.42,47.5769593]
[1743962120304,0.14216157,111.47,111.38,18.64964886]
[1743962120506,0.28432314,111.45,111.44,47.5769593]
[1743962120687,0.28432314,111.45,111.38,18.64964886]
[1743962121008,13.08,111.48,111.39,6.2842]
[1743962121181,0.42648471,111.47,111.39,6.2842]
[1743962121378,0.42648471,111.47,111.43,47.5769593]
[1743962121688,0.28432314,111.47,111.42,47.5769593]
[1743962121892,0.28432314,111.47,111.39,6.2842]
[1743962122082,13.08,111.48,111.46,47.5769593]
[1743962122280,13.279,111.5,111.42,47.5769593]
[1743962122510,0.14216157,111.49,111.45,47.5769593]
[1743962122693,48.00344401,111.49,111.4,18.64964886]
[1743962122880,48.00344401,111.49,111.41,6.283]
[1743962123082,48.00344401,111.49,111.44,47.5769593]
[1743962123506,0.28432314,111.49,111.45,47.5769593]
[1743962123891,13.279,111.5,111.47,47.5769593]
[1743962124198,26.359,111.5,111.43,18.64964886]
[1743962124502,26.359,111.5,111.45,26.0]
[1743962124707,13.08,111.5,111.49,47.5769593]
[1743962124907,13.08,111.53,111.49,47.5769593]
[1743962125083,0.28432314,111.52,111.48,53.8556593]
[1743962125289,13.08,111.53,111.51,47.5769593]
[1743962125490,13.08,111.53,111.52,47.5769593]
[1743962125685,13.22216157,111.58,111.52,47.5769593]
[1743962125916,13.08,111.58,111.55,47.5769593]
[1743962126116,26.422,111.59,111.56,47.5769593]
[1743962126493,0.28432314,111.58,111.56,47.5769593]
[1743962126716,26.422,111.59,111.56,47.5769593]
[1743962127050,0.28432314,111.58,111.54,47.5769593]
[1743962127210,47.86128244,111.58,111.53,47.5769593]
[1743962127526,13.342,111.59,111.54,47.5769593]
[1743962127687,13.342,111.59,111.47,12.4324]
[1743962127688,0.14216157,111.55,111.47,12.4324]
[1743962127892,0.42648471,111.55,111.51,47.5769593]
[1743962128115,0.42648471,111.55,111.48,47.5769593]
[1743962128316,0.42648471,111.5,111.42,55.1070593]
[1743962128518,13.08,111.49,111.47,47.5769593]
[1743962128724,13.08,111.48,111.47,47.5769593]
[1743962129215,0.28432314,111.47,111.43,30.0]
[1743962129421,0.28432314,111.47,111.39,12.4324]
[1743962129422,0.28432314,111.47,111.46,47.5769593]
[1743962129630,13.08,111.48,111.46,47.5769593]
[1743962129992,13.08,111.48,111.42,47.5769593]
[1743962129993,0.28432314,111.47,111.42,47.5769593]
[1743962130614,13.08,111.46,111.45,47.5769593]
[1743962130815,13.279,111.5,111.45,47.5769593]
[1743962131018,13.279,111.5,111.47,47.5769593]
[1743962131019,0.28432314,111.48,111.47,47.5769593]
[1743962131206,0.14216157,111.49,111.39,12.4324]
[1743962131520,0.14216157,111.49,111.43,47.5769593]
[1743962131521,0.28432314,111.47,111.43,47.5769593]
[1743962131726,0.42648471,111.47,111.39,18.64964886]
[1743962131912,0.28432314,111.47,111.44,47.5769593]
[1743962132098,0.28432314,111.47,111.37,6.3153]
[1743962132099,47.5769593,111.45,111.37,6.3153]
[1743962132293,0.42648471,111.47,111.39,47.5769593]
[1743962132294,0.42648471,111.43,111.39,47.5769593]
[1743962132527,0.28432314,111.41,111.39,47.5769593]
[1743962133435,0.28432314,111.41,111.37,0.03]
[1743962133629,47.5769593,111.4,111.37,0.03]
[1743962133930,47.86128244,111.38,111.37,0.03]
[1743962134230,48.00344401,111.38,111.37,0.03]
[1743962134912,48.00344401,111.38,111.26,6.2915]
[1743962135111,0.28432314,111.34,111.26,6.2915]
[1743962135325,13.06,111.33,111.31,47.5769593]
[1743962135530,13.06,111.33,111.32,47.5769593]
[1743962136143,13.06,111.33,111.27,47.5769593]
[1743962136144,0.42648471,111.32,111.27,47.5769593]
[1743962136435,48.00344401,111.32,111.27,47.5769593]
[1743962136640,48.00344401,111.32,111.25,0.03]
[1743962136814,0.28432314,111.3,111.25,0.03]
[1743962137140,0.28432314,111.31,111.29,47.5769593]
[1743962137349,0.42648471,111.31,111.25,0.03]
[1743962137633,13.06,111.33,111.3,47.5769593]
[1743962137837,0.14216157,111.36,111.32,47.5769593]
[1743962138005,13.08,111.34,111.33,47.5769593]
[1743962138202,13.08,111.34,111.28,26.0]
[1743962138418,13.06,111.37,111.33,47.5769593]
[1743962138622,13.06,111.37,111.36,47.5769593]
[1743962138849,0.28432314,111.36,111.28,26.0]
[1743962139022,13.06,111.37,111.34,73.5769593]
[1743962139218,13.06,111.37,111.34,26.0]
[1743962139418,13.06,111.37,111.36,47.5769593]
[1743962139846,13.06,111.37,111.36,66.22660816]
[1743962140050,13.08,111.41,111.39,26.0]
[1743962140257,13.08,111.41,111.4,47.5769593]
[1743962140557,13.06,111.45,111.4,66.22660816]
[1743962140842,13.06,111.45,111.43,47.5769593]
[1743962141026,13.06,111.45,111.44,47.5769593]
[1743962141737,0.14216157,111.49,111.44,47.5769593]
[1743962142083,13.06,111.48,111.45,47.5769593]
[1743962142258,13.06,111.48,111.42,18.64964886]
[1743962142551,13.06,111.48,111.46,47.5769593]
[1743962142724,13.06,111.48,111.47,47.5769593]
[1743962143256,13.1093,111.54,111.47,47.5769593]
[1743962143257,13.06,111.49,111.47,47.5769593]
[1743962143437,13.06,111.5,111.48,47.5769593]
[1743962143748,0.063,111.58,111.49,113.80356746]
[1743962143950,0.063,111.58,111.57,47.5769593]
[1743962144152,0.063,111.58,111.57,113.80356746]
[1743962144456,52.71679405,111.65,111.58,113.80356746]
[1743962144757,52.71679405,111.65,111.6,113.80356746]
[1743962145055,13.123,111.69,111.64,47.5769593]
[1743962145255,0.063,111.69,111.68,47.5769593]
[1743962145621,0.063,111.69,111.61,18.64964886]
[1743962145825,0.14216157,111.68,111.6,47.5769593]
[1743962146032,0.063,111.69,111.67,47.5769593]
[1743962146255,0.063,111.69,111.61,18.64964886]
[1743962146444,0.063,111.69,111.67,47.5769593]
[1743962146639,0.063,111.69,111.68,47.5769593]
[1743962146840,0.063,111.69,111.67,47.5769593]
[1743962147036,0.063,111.69,111.68,47.5769593]
[1743962147345,0.14216157,111.68,111.6,47.5769593]
[1743962147548,0.14216157,111.68,111.64,47.5769593]
[1743962147846,0.28432314,111.67,111.64,47.5769593]
[1743962148026,26.28432314,111.67,111.64,47.5769593]
[1743962148229,0.42648471,111.65,111.6,47.5769593]
[1743962148428,0.42648471,111.65,111.63,47.5769593]
[1743962148970,0.42648471,111.65,111.62,47.5769593]
[1743962149132,0.42648471,111.65,111.64,47.5769593]
[1743962149331,0.42648471,111.65,111.63,47.5769593]
[1743962149752,0.42648471,111.65,111.64,47.5769593]
[1743962150157,13.04,111.67,111.64,47.5769593]
[1743962150326,0.42648471,111.66,111.6,66.22660816]
[1743962150532,0.42648471,111.66,111.65,47.5769593]
[1743962150745,13.46648471,111.66,111.65,47.5769593]
[1743962151245,13.04,111.66,111.65,47.5769593]
[1743962151437,13.04,111.67,111.65,47.5769593]
[1743962151637,0.28432314,111.67,111.66,47.5769593]
[1743962151836,0.063,111.69,111.66,95.1539186]
[1743962152040,0.063,111.69,111.68,47.5769593]
[1743962153236,0.063,111.7,111.68,47.5769593]
[1743962153435,0.063,111.7,111.69,47.5769593]
[1743962154056,0.063,111.7,111.69,66.22660816]
[1743962154258,0.063,111.7,111.69,47.5769593]
[1743962154636,0.42648471,111.73,111.66,66.22660816]
[1743962154833,0.42648471,111.73,111.7,47.5769593]
[1743962155044,0.42648471,111.73,111.71,47.5769593]
[1743962155644,0.42648471,111.73,111.66,66.22660816]
[1743962155645,0.42648471,111.73,111.7,47.5769593]
[1743962156263,0.42648471,111.73,111.66,47.5769593]
[1743962156436,48.00344401,111.69,111.61,27.63307596]
[1743962156648,0.42648471,111.67,111.64,47.5769593]
[1743962156970,0.28432314,111.67,111.65,47.5769593]
[1743962157174,0.42648471,111.67,111.64,47.5769593]
[1743962157342,0.42648471,111.67,111.65,47.5769593]
[1743962157534,0.28432314,111.67,111.65,47.5769593]
[1743962157844,0.28432314,111.67,111.66,47.5769593]
[1743962158047,0.28432314,111.67,111.65,47.5769593]
[1743962158268,0.42648471,111.67,111.6,66.25660816]
[1743962158435,0.42648471,111.67,111.61,18.64964886]
[1743962158767,0.42648471,111.67,111.66,47.5769593]
[1743962158768,0.28432314,111.67,111.66,47.5769593]
[1743962159064,13.02,111.7,111.66,105.03955662]
[1743962159250,13.02,111.7,111.69,52.51977831]
[1743962159450,0.063,111.76,111.72,26.0]
[1743962159659,0.063,111.76,111.74,52.51977831]
[1743962160164,0.063,111.76,111.66,52.51977831]
[1743962160368,0.063,111.76,111.7,18.64964886]
[1743962160546,0.14216157,111.73,111.69,52.51977831]
[1743962160749,13.02,111.72,111.66,52.51977831]
[1743962160963,13.30432314,111.72,111.71,52.51977831]
[1743962161482,13.02,111.72,111.71,52.51977831]
[1743962162050,13.30432314,111.72,111.66,52.51977831]